[Event "Chessable Masters - Torneo preliminare"]
[White "Le, Quang Liem"]
[Black "Abdusattorov, Nodirbek"]
[WhiteFideId "12401137"]
[BlackFideId "14204118"]
[WhiteElo "2661"]
[BlackElo "2714"]
[Result "1/2-1/2"]
[Round "5"]
[TimeControl "600+2"]
[Date "2023.03.13"]
[WhiteClock "0:03:07"]
[BlackClock "0:04:53"]

1. d4 {[%clk 0:09:55]}  d5 {[%clk 0:09:57]} 2. Nf3 {[%clk 0:09:56]}  Nf6 {[%clk 0:09:57]} 3. c4 {[%clk 0:09:57]}  dxc4 {[%clk 0:09:58]} 4. e3 {[%clk 0:09:57]}  e6 {[%clk 0:10:00]} 5. Bxc4 {[%clk 0:09:58]}  c5 {[%clk 0:10:01]} 6. O-O {[%clk 0:09:59]}  a6 {[%clk 0:10:03]} 7. b3 {[%clk 0:09:58]}  cxd4 {[%clk 0:10:04]} 8. Nxd4 {[%clk 0:09:56]}  Bd6 {[%clk 0:10:05]} 9. Bb2 {[%clk 0:09:46]}  O-O {[%clk 0:10:06]} 10. Be2 {[%clk 0:09:45]}  Qe7 {[%clk 0:10:03]} 11. Nd2 {[%clk 0:09:41]}  e5 {[%clk 0:10:03]} 12. N4f3 {[%clk 0:09:41]}  Rd8 {[%clk 0:10:04]} 13. Qc2 {[%clk 0:09:32]}  Nc6 {[%clk 0:09:50]} 14. Rad1 {[%clk 0:09:20]}  Bg4 {[%clk 0:09:39]} 15. Nc4 {[%clk 0:09:14]}  Bc7 {[%clk 0:09:13]} 16. Ba3 {[%clk 0:09:11]}  Qe8 {[%clk 0:08:59]} 17. h3 {[%clk 0:07:19]}  Bh5 {[%clk 0:08:29]} 18. Nh4 {[%clk 0:07:17]}  Bxe2 {[%clk 0:08:27]} 19. Qxe2 {[%clk 0:07:19]}  b5 {[%clk 0:08:25]} 20. Nd6 {[%clk 0:06:40]}  Bxd6 {[%clk 0:06:54]} 21. Rxd6 {[%clk 0:06:40]}  Rxd6 {[%clk 0:06:54]} 22. Bxd6 {[%clk 0:06:42]}  Rd8 {[%clk 0:06:55]} 23. Ba3 {[%clk 0:06:25]}  e4 {[%clk 0:06:15]} 24. Nf5 {[%clk 0:05:53]}  Rd5 {[%clk 0:05:15]} 25. Ng3 {[%clk 0:05:01]}  h5 {[%clk 0:04:58]} 26. Rd1 {[%clk 0:04:35]}  Qd7 {[%clk 0:04:55]} 27. Rxd5 {[%clk 0:04:34]}  Qxd5 {[%clk 0:04:57]} 28. Bb2 {[%clk 0:04:35]}  h4 {[%clk 0:04:58]} 29. Bxf6 {[%clk 0:03:38]}  hxg3 {[%clk 0:04:57]} 30. Qg4 {[%clk 0:03:29]}  gxf2+ {[%clk 0:04:58]} 31. Kxf2 {[%clk 0:03:10]}  Qd2+ {[%clk 0:04:58]} 32. Kf1 {[%clk 0:03:06]}  Qd3+ {[%clk 0:04:59]} 33. Kf2 {[%clk 0:03:05]}  Qd2+ {[%clk 0:05:00]} 34. Kf1 {[%clk 0:03:06]}  Qd3+ {[%clk 0:04:52]} 35. Kf2 {[%clk 0:03:07]}  Qd2+ {[%clk 0:04:53]} 1/2-1/2


[Site "Internet"]

[Event "Chessable Masters - Torneo preliminare"]
[White "Artemiev, Vladislav"]
[Black "Aronian, Levon"]
[WhiteFideId "24101605"]
[BlackFideId "13300474"]
[WhiteElo "2735"]
[BlackElo "2720"]
[Result "1/2-1/2"]
[Round "5"]
[TimeControl "600+2"]
[Date "2023.03.13"]
[WhiteClock "0:00:14"]
[BlackClock "0:00:10"]

1. Nf3 {[%clk 0:09:20]}  d5 {[%clk 0:09:59]} 2. e3 {[%clk 0:09:11]}  Nf6 {[%clk 0:10:00]} 3. c4 {[%clk 0:09:12]}  e6 {[%clk 0:10:00]} 4. Nc3 {[%clk 0:09:07]}  Bd6 {[%clk 0:09:58]} 5. b3 {[%clk 0:09:07]}  O-O {[%clk 0:09:47]} 6. Bb2 {[%clk 0:09:08]}  c5 {[%clk 0:09:48]} 7. Be2 {[%clk 0:08:41]}  Nc6 {[%clk 0:09:45]} 8. cxd5 {[%clk 0:08:40]}  exd5 {[%clk 0:09:43]} 9. d4 {[%clk 0:08:40]}  cxd4 {[%clk 0:09:38]} 10. Nxd4 {[%clk 0:08:40]}  Nxd4 {[%clk 0:09:33]} 11. Qxd4 {[%clk 0:08:40]}  Re8 {[%clk 0:09:35]} 12. Rd1 {[%clk 0:07:10]}  Be5 {[%clk 0:09:33]} 13. Qd2 {[%clk 0:07:01]}  Be6 {[%clk 0:08:50]} 14. Bf3 {[%clk 0:05:18]}  Rc8 {[%clk 0:08:42]} 15. Ne2 {[%clk 0:05:05]}  Bxb2 {[%clk 0:08:16]} 16. Qxb2 {[%clk 0:05:06]}  Qa5+ {[%clk 0:08:18]} 17. Qd2 {[%clk 0:04:00]}  Qxd2+ {[%clk 0:08:13]} 18. Rxd2 {[%clk 0:03:14]}  Ne4 {[%clk 0:08:05]} 19. Rb2 {[%clk 0:03:15]}  Ng5 {[%clk 0:07:11]} 20. Bh5 {[%clk 0:02:49]}  Bf5 {[%clk 0:06:22]} 21. O-O {[%clk 0:02:17]}  g6 {[%clk 0:06:03]} 22. Nd4 {[%clk 0:02:15]}  Bd3 {[%clk 0:06:00]} 23. Be2 {[%clk 0:02:15]}  Bxe2 {[%clk 0:06:00]} 24. Nxe2 {[%clk 0:02:12]}  Ne4 {[%clk 0:05:24]} 25. Rd1 {[%clk 0:02:10]}  Re5 {[%clk 0:05:10]} 26. Rd3 {[%clk 0:01:52]}  Kf8 {[%clk 0:04:56]} 27. f3 {[%clk 0:01:46]}  Nf6 {[%clk 0:04:27]} 28. Kf2 {[%clk 0:01:46]}  h5 {[%clk 0:03:51]} 29. h4 {[%clk 0:01:32]}  b6 {[%clk 0:02:15]} 30. Rbd2 {[%clk 0:00:51]}  Kg7 {[%clk 0:02:15]} 31. Rc3 {[%clk 0:00:48]}  Rce8 {[%clk 0:00:30]} 32. Nd4 {[%clk 0:00:48]}  R5e7 {[%clk 0:00:31]} 33. Rdd3 {[%clk 0:00:26]}  Rd7 {[%clk 0:00:22]} 34. Rc6 {[%clk 0:00:26]}  Ng8 {[%clk 0:00:21]} 35. Rdc3 {[%clk 0:00:21]}  Ne7 {[%clk 0:00:21]} 36. Rc7 {[%clk 0:00:22]}  Red8 {[%clk 0:00:23]} 37. Kg3 {[%clk 0:00:15]}  Kf6 {[%clk 0:00:05]} 38. Kf4 {[%clk 0:00:16]}  Kg7 {[%clk 0:00:04]} 39. Ke5 {[%clk 0:00:12]}  Ng8 {[%clk 0:00:05]} 40. Nb5 {[%clk 0:00:07]}  Ne7 {[%clk 0:00:02]} 41. Rxd7 {[%clk 0:00:07]}  Rxd7 {[%clk 0:00:04]} 42. Rc7 {[%clk 0:00:09]}  Rxc7 {[%clk 0:00:04]} 43. Nxc7 {[%clk 0:00:10]}  Nf5 {[%clk 0:00:05]} 44. Kf4 {[%clk 0:00:03]}  Nxh4 {[%clk 0:00:06]} 45. Kg3 {[%clk 0:00:03]}  Nf5+ {[%clk 0:00:04]} 46. Kf4 {[%clk 0:00:05]}  d4 {[%clk 0:00:05]} 47. exd4 {[%clk 0:00:04]}  Nxd4 {[%clk 0:00:06]} 48. Ke4 {[%clk 0:00:06]}  Nc6 {[%clk 0:00:06]} 49. Nd5 {[%clk 0:00:05]}  h4 {[%clk 0:00:07]} 50. Kf4 {[%clk 0:00:06]}  f6 {[%clk 0:00:08]} 51. Kg4 {[%clk 0:00:07]}  g5 {[%clk 0:00:09]} 52. f4 {[%clk 0:00:06]}  Kg6 {[%clk 0:00:10]} 53. b4 {[%clk 0:00:03]}  b5 {[%clk 0:00:11]} 54. a3 {[%clk 0:00:04]}  a6 {[%clk 0:00:08]} 55. Nc7 {[%clk 0:00:04]}  Nd4 {[%clk 0:00:08]} 56. fxg5 {[%clk 0:00:05]}  fxg5 {[%clk 0:00:09]} 57. Nxa6 {[%clk 0:00:06]}  Nc2 {[%clk 0:00:08]} 58. Nc7 {[%clk 0:00:07]}  Nxa3 {[%clk 0:00:08]} 59. Ne6 {[%clk 0:00:09]}  Nc2 {[%clk 0:00:09]} 60. Nxg5 {[%clk 0:00:10]}  Nxb4 {[%clk 0:00:09]} 61. Kxh4 {[%clk 0:00:08]}  Nd3 {[%clk 0:00:06]} 62. Kg4 {[%clk 0:00:07]}  b4 {[%clk 0:00:05]} 63. Ne4 {[%clk 0:00:08]}  b3 {[%clk 0:00:05]} 64. Nd2 {[%clk 0:00:09]}  b2 {[%clk 0:00:06]} 65. Kf3 {[%clk 0:00:10]}  Nc5 {[%clk 0:00:04]} 66. Ke2 {[%clk 0:00:11]}  Kf5 {[%clk 0:00:04]} 67. Kd1 {[%clk 0:00:12]}  Ne4 {[%clk 0:00:05]} 68. Nb1 {[%clk 0:00:11]}  Kf4 {[%clk 0:00:07]} 69. Kc2 {[%clk 0:00:13]}  Kg3 {[%clk 0:00:08]} 70. Kxb2 {[%clk 0:00:14]}  Kxg2 {[%clk 0:00:10]} 1/2-1/2


[Site "Internet"]

[Event "Chessable Masters - Torneo preliminare"]
[White "Lazavik, Denis"]
[Black "Erigaisi, Arjun"]
[WhiteFideId "13515110"]
[BlackFideId "35009192"]
[WhiteElo "2488"]
[BlackElo "2685"]
[Result "1/2-1/2"]
[Round "5"]
[TimeControl "600+2"]
[Date "2023.03.13"]
[WhiteClock "0:00:11"]
[BlackClock "0:00:45"]

1. d4 {[%clk 0:09:59]}  d5 {[%clk 0:09:58]} 2. c4 {[%clk 0:10:00]}  c6 {[%clk 0:09:59]} 3. Nf3 {[%clk 0:10:00]}  Nf6 {[%clk 0:10:00]} 4. Qc2 {[%clk 0:10:01]}  dxc4 {[%clk 0:09:51]} 5. Qxc4 {[%clk 0:09:47]}  Bg4 {[%clk 0:09:51]} 6. Nc3 {[%clk 0:09:47]}  Nbd7 {[%clk 0:09:51]} 7. Bf4 {[%clk 0:09:48]}  Bxf3 {[%clk 0:09:37]} 8. gxf3 {[%clk 0:09:48]}  e6 {[%clk 0:09:39]} 9. e4 {[%clk 0:09:45]}  Nh5 {[%clk 0:09:35]} 10. Be3 {[%clk 0:09:35]}  Qc7 {[%clk 0:09:27]} 11. O-O-O {[%clk 0:09:23]}  Nb6 {[%clk 0:09:23]} 12. Qb3 {[%clk 0:09:17]}  Bd6 {[%clk 0:09:14]} 13. Kb1 {[%clk 0:09:12]}  Bf4 {[%clk 0:09:12]} 14. e5 {[%clk 0:08:26]}  O-O-O {[%clk 0:08:56]} 15. Nb5 {[%clk 0:07:20]}  Qb8 {[%clk 0:08:05]} 16. Rc1 {[%clk 0:06:49]}  Nd5 {[%clk 0:07:54]} 17. Bxf4 {[%clk 0:06:05]}  Nhxf4 {[%clk 0:07:53]} 18. Qa3 {[%clk 0:06:04]}  a6 {[%clk 0:07:17]} 19. Nd6+ {[%clk 0:06:03]}  Rxd6 {[%clk 0:07:19]} 20. exd6 {[%clk 0:06:03]}  Kd7 {[%clk 0:06:34]} 21. Qb3 {[%clk 0:05:55]}  b5 {[%clk 0:06:32]} 22. Bd3 {[%clk 0:05:41]}  f5 {[%clk 0:06:18]} 23. Rc5 {[%clk 0:04:26]}  Qxd6 {[%clk 0:06:18]} 24. Rhc1 {[%clk 0:04:27]}  Ne7 {[%clk 0:06:13]} 25. Bf1 {[%clk 0:04:27]}  Rd8 {[%clk 0:06:02]} 26. Qa3 {[%clk 0:04:07]}  Ke8 {[%clk 0:05:24]} 27. Qxa6 {[%clk 0:04:02]}  Qxd4 {[%clk 0:05:25]} 28. Rxc6 {[%clk 0:03:26]}  Nxc6 {[%clk 0:05:24]} 29. Qxc6+ {[%clk 0:03:28]}  Kf8 {[%clk 0:05:25]} 30. Bxb5 {[%clk 0:03:26]}  Qxf2 {[%clk 0:05:06]} 31. Qc5+ {[%clk 0:03:17]}  Qxc5 {[%clk 0:05:06]} 32. Rxc5 {[%clk 0:03:19]}  Rd5 {[%clk 0:03:52]} 33. Rxd5 {[%clk 0:03:09]}  Nxd5 {[%clk 0:03:53]} 34. Kc2 {[%clk 0:02:49]}  Ke7 {[%clk 0:03:52]} 35. a3 {[%clk 0:02:46]}  g5 {[%clk 0:03:48]} 36. Kd3 {[%clk 0:02:41]}  h5 {[%clk 0:03:44]} 37. Bc4 {[%clk 0:02:20]}  Kd6 {[%clk 0:03:28]} 38. b4 {[%clk 0:02:16]}  e5 {[%clk 0:03:16]} 39. Kd2 {[%clk 0:01:47]}  g4 {[%clk 0:02:51]} 40. Be2 {[%clk 0:01:46]}  e4 {[%clk 0:02:16]} 41. fxe4 {[%clk 0:01:43]}  fxe4 {[%clk 0:02:18]} 42. b5 {[%clk 0:01:32]}  Nb6 {[%clk 0:01:48]} 43. Bd1 {[%clk 0:00:33]}  Nc4+ {[%clk 0:01:48]} 44. Kc3 {[%clk 0:00:33]}  Nxa3 {[%clk 0:01:49]} 45. b6 {[%clk 0:00:24]}  Kc6 {[%clk 0:00:58]} 46. Ba4+ {[%clk 0:00:19]}  Kxb6 {[%clk 0:00:57]} 47. Kd4 {[%clk 0:00:21]}  Nb1 {[%clk 0:00:47]} 48. Be8 {[%clk 0:00:12]}  h4 {[%clk 0:00:46]} 49. Kxe4 {[%clk 0:00:10]}  Kc5 {[%clk 0:00:42]} 50. Kf4 {[%clk 0:00:08]}  g3 {[%clk 0:00:43]} 51. hxg3 {[%clk 0:00:09]}  hxg3 {[%clk 0:00:45]} 52. Kxg3 {[%clk 0:00:11]} 1/2-1/2


[Site "Internet"]

[Event "Chessable Masters - Torneo preliminare"]
[White "Fedoseev, Vladimir"]
[Black "Gukesh, D"]
[WhiteFideId "24130737"]
[BlackFideId "46616543"]
[WhiteElo "2752"]
[BlackElo "2629"]
[Result "1-0"]
[Round "5"]
[TimeControl "600+2"]
[Date "2023.03.13"]
[WhiteClock "0:00:16"]
[BlackClock "0:00:04"]

1. e4 {[%clk 0:09:54]}  c5 {[%clk 0:09:59]} 2. Nf3 {[%clk 0:09:55]}  Nc6 {[%clk 0:10:00]} 3. Bb5 {[%clk 0:09:53]}  e6 {[%clk 0:10:00]} 4. Bxc6 {[%clk 0:09:51]}  bxc6 {[%clk 0:10:01]} 5. d3 {[%clk 0:09:51]}  Ne7 {[%clk 0:09:59]} 6. Nbd2 {[%clk 0:09:45]}  d6 {[%clk 0:09:56]} 7. e5 {[%clk 0:09:44]}  d5 {[%clk 0:09:57]} 8. c4 {[%clk 0:09:37]}  Ng6 {[%clk 0:09:55]} 9. O-O {[%clk 0:09:30]}  Be7 {[%clk 0:09:48]} 10. Re1 {[%clk 0:09:14]}  O-O {[%clk 0:09:48]} 11. b3 {[%clk 0:08:51]}  f5 {[%clk 0:09:28]} 12. Qc2 {[%clk 0:08:08]}  a5 {[%clk 0:08:56]} 13. cxd5 {[%clk 0:06:54]}  cxd5 {[%clk 0:08:19]} 14. Ba3 {[%clk 0:06:53]}  Ba6 {[%clk 0:08:20]} 15. Bxc5 {[%clk 0:06:18]}  Rc8 {[%clk 0:08:13]} 16. d4 {[%clk 0:06:10]}  Nf4 {[%clk 0:08:13]} 17. b4 {[%clk 0:05:33]}  axb4 {[%clk 0:07:01]} 18. Qa4 {[%clk 0:05:29]}  Bd3 {[%clk 0:05:58]} 19. Bxb4 {[%clk 0:04:17]}  Be4 {[%clk 0:05:28]} 20. Bxe7 {[%clk 0:03:26]}  Qxe7 {[%clk 0:05:27]} 21. Re3 {[%clk 0:03:15]}  Rc7 {[%clk 0:05:09]} 22. Qa3 {[%clk 0:02:01]}  Qxa3 {[%clk 0:04:03]} 23. Rxa3 {[%clk 0:02:02]}  Rc2 {[%clk 0:04:04]} 24. Rd1 {[%clk 0:01:26]}  Rb8 {[%clk 0:03:47]} 25. h4 {[%clk 0:01:14]}  Rbb2 {[%clk 0:03:30]} 26. Ng5 {[%clk 0:01:07]}  Kf8 {[%clk 0:02:23]} 27. Ndxe4 {[%clk 0:00:52]}  fxe4 {[%clk 0:02:18]} 28. g3 {[%clk 0:00:45]}  Nd3 {[%clk 0:01:01]} 29. Rf1 {[%clk 0:00:45]}  Ke8 {[%clk 0:00:50]} 30. Ra8+ {[%clk 0:00:42]}  Kd7 {[%clk 0:00:50]} 31. Ra7+ {[%clk 0:00:41]}  Kc8 {[%clk 0:00:46]} 32. Ra8+ {[%clk 0:00:37]}  Kb7 {[%clk 0:00:45]} 33. Ra3 {[%clk 0:00:38]}  Kc6 {[%clk 0:00:10]} 34. Nh3 {[%clk 0:00:39]}  Rxa2 {[%clk 0:00:10]} 35. Rxa2 {[%clk 0:00:33]}  Rxa2 {[%clk 0:00:11]} 36. Ng5 {[%clk 0:00:33]}  Kd7 {[%clk 0:00:08]} 37. Nxh7 {[%clk 0:00:27]}  Ra4 {[%clk 0:00:04]} 38. Rb1 {[%clk 0:00:28]}  Rxd4 {[%clk 0:00:04]} 39. Rb7+ {[%clk 0:00:29]}  Kc6 {[%clk 0:00:06]} 40. Rxg7 {[%clk 0:00:30]}  Nxe5 {[%clk 0:00:08]} 41. Ng5 {[%clk 0:00:31]}  Rd1+ {[%clk 0:00:06]} 42. Kg2 {[%clk 0:00:31]}  Rd2 {[%clk 0:00:08]} 43. Kf1 {[%clk 0:00:19]}  Nd3 {[%clk 0:00:05]} 44. Rf7 {[%clk 0:00:20]}  Ne5 {[%clk 0:00:03]} 45. Rf6 {[%clk 0:00:16]}  Ng4 {[%clk 0:00:04]} 46. Rf4 {[%clk 0:00:17]}  Nh6 {[%clk 0:00:03]} 47. Nxe6 {[%clk 0:00:17]}  Kd6 {[%clk 0:00:04]} 48. Ng5 {[%clk 0:00:16]}  Ke5 {[%clk 0:00:06]} 49. Rf8 {[%clk 0:00:12]}  Ng4 {[%clk 0:00:06]} 50. h5 {[%clk 0:00:12]}  Rd1+ {[%clk 0:00:04]} 51. Kg2 {[%clk 0:00:13]}  e3 {[%clk 0:00:05]} 52. Nf3+ {[%clk 0:00:07]}  Kd6 {[%clk 0:00:05]} 53. fxe3 {[%clk 0:00:08]}  Nxe3+ {[%clk 0:00:06]} 54. Kh2 {[%clk 0:00:08]}  Ng4+ {[%clk 0:00:06]} 55. Kh3 {[%clk 0:00:09]}  Nf2+ {[%clk 0:00:05]} 56. Kg2 {[%clk 0:00:11]}  Ng4 {[%clk 0:00:04]} 57. h6 {[%clk 0:00:12]}  Nxh6 {[%clk 0:00:02]} 58. Rf6+ {[%clk 0:00:13]}  Ke7 {[%clk 0:00:04]} 59. Rxh6 {[%clk 0:00:15]}  d4 {[%clk 0:00:04]} 60. Rh4 {[%clk 0:00:16]} 1-0


[Site "Internet"]

[Event "Chessable Masters - Torneo preliminare"]
[White "Praggnanandhaa, R"]
[Black "Yakubboev, Nodirbek"]
[WhiteFideId "25059530"]
[BlackFideId "14203987"]
[WhiteElo "2587"]
[BlackElo "2577"]
[Result "1/2-1/2"]
[Round "5"]
[TimeControl "600+2"]
[Date "2023.03.13"]
[WhiteClock "0:00:32"]
[BlackClock "0:00:21"]

1. Nf3 {[%clk 0:09:59]}  Nf6 {[%clk 0:09:59]} 2. b3 {[%clk 0:09:56]}  d5 {[%clk 0:09:28]} 3. Bb2 {[%clk 0:09:52]}  Bf5 {[%clk 0:08:56]} 4. g3 {[%clk 0:09:49]}  h6 {[%clk 0:08:51]} 5. Bg2 {[%clk 0:09:48]}  e6 {[%clk 0:08:51]} 6. O-O {[%clk 0:09:49]}  Be7 {[%clk 0:08:47]} 7. d3 {[%clk 0:09:49]}  O-O {[%clk 0:08:42]} 8. Nbd2 {[%clk 0:09:49]}  Bh7 {[%clk 0:08:19]} 9. c4 {[%clk 0:09:38]}  a5 {[%clk 0:08:06]} 10. a3 {[%clk 0:09:38]}  c6 {[%clk 0:08:07]} 11. Rc1 {[%clk 0:09:38]}  Nbd7 {[%clk 0:08:02]} 12. Rc2 {[%clk 0:09:38]}  Bd6 {[%clk 0:07:09]} 13. Qa1 {[%clk 0:09:35]}  Qe7 {[%clk 0:07:08]} 14. cxd5 {[%clk 0:09:29]}  exd5 {[%clk 0:06:55]} 15. Re1 {[%clk 0:09:28]}  Nc5 {[%clk 0:06:11]} 16. Bxf6 {[%clk 0:08:54]}  Qxf6 {[%clk 0:06:09]} 17. Qxf6 {[%clk 0:08:55]}  gxf6 {[%clk 0:06:11]} 18. b4 {[%clk 0:08:51]}  Ne6 {[%clk 0:05:58]} 19. Rb1 {[%clk 0:08:50]}  axb4 {[%clk 0:05:12]} 20. axb4 {[%clk 0:08:49]}  Ra4 {[%clk 0:05:10]} 21. Rcb2 {[%clk 0:08:41]}  Rd8 {[%clk 0:04:51]} 22. Bh3 {[%clk 0:07:51]}  f5 {[%clk 0:04:35]} 23. Kf1 {[%clk 0:06:40]}  f4 {[%clk 0:04:32]} 24. Ke1 {[%clk 0:06:09]}  Re8 {[%clk 0:04:01]} 25. Kf1 {[%clk 0:06:02]}  Kf8 {[%clk 0:03:56]} 26. Rb3 {[%clk 0:05:31]}  Rea8 {[%clk 0:03:41]} 27. Bg2 {[%clk 0:05:14]}  Ra1 {[%clk 0:03:34]} 28. b5 {[%clk 0:04:46]}  Nc5 {[%clk 0:03:01]} 29. Rxa1 {[%clk 0:04:35]}  Rxa1+ {[%clk 0:02:59]} 30. Rb1 {[%clk 0:04:32]}  Rxb1+ {[%clk 0:02:59]} 31. Nxb1 {[%clk 0:04:33]}  Nxd3 {[%clk 0:03:00]} 32. bxc6 {[%clk 0:04:19]}  bxc6 {[%clk 0:02:56]} 33. Nc3 {[%clk 0:04:18]}  Nb4 {[%clk 0:02:46]} 34. Bh3 {[%clk 0:04:08]}  Ke7 {[%clk 0:02:39]} 35. Bg2 {[%clk 0:04:08]}  Kd7 {[%clk 0:02:18]} 36. gxf4 {[%clk 0:04:08]}  Bxf4 {[%clk 0:02:18]} 37. e3 {[%clk 0:04:09]}  Bc7 {[%clk 0:02:15]} 38. Bh3+ {[%clk 0:04:09]}  Kd6 {[%clk 0:02:15]} 39. Nd4 {[%clk 0:04:09]}  Bd3+ {[%clk 0:02:10]} 40. Kg2 {[%clk 0:03:59]}  Ke5 {[%clk 0:02:07]} 41. f4+ {[%clk 0:03:40]}  Kd6 {[%clk 0:01:59]} 42. Nf5+ {[%clk 0:03:36]}  Kc5 {[%clk 0:01:45]} 43. Nxh6 {[%clk 0:03:06]}  d4 {[%clk 0:01:45]} 44. exd4+ {[%clk 0:03:06]}  Kxd4 {[%clk 0:01:47]} 45. Nd1 {[%clk 0:03:07]}  Bxf4 {[%clk 0:01:39]} 46. Nxf7 {[%clk 0:03:08]}  Be4+ {[%clk 0:01:34]} 47. Kg1 {[%clk 0:02:57]}  Nd3 {[%clk 0:01:15]} 48. Nd8 {[%clk 0:02:32]}  Bf3 {[%clk 0:00:27]} 49. Bg2 {[%clk 0:01:56]}  Bxd1 {[%clk 0:00:21]} 50. Ne6+ {[%clk 0:01:55]}  Ke3 {[%clk 0:00:18]} 51. Nxf4 {[%clk 0:01:55]}  Nxf4 {[%clk 0:00:19]} 52. Bxc6 {[%clk 0:01:56]}  Bg4 {[%clk 0:00:12]} 53. h4 {[%clk 0:01:55]}  Bh3 {[%clk 0:00:12]} 54. Kh2 {[%clk 0:01:56]}  Kf2 {[%clk 0:00:13]} 55. h5 {[%clk 0:01:50]}  Bf5 {[%clk 0:00:14]} 56. h6 {[%clk 0:01:51]}  Nd3 {[%clk 0:00:13]} 57. Bd7 {[%clk 0:01:22]}  Bh7 {[%clk 0:00:13]} 58. Kh3 {[%clk 0:01:16]}  Kf3 {[%clk 0:00:15]} 59. Kh4 {[%clk 0:01:12]}  Kf4 {[%clk 0:00:15]} 60. Ba4 {[%clk 0:01:12]}  Ne5 {[%clk 0:00:15]} 61. Bb3 {[%clk 0:01:09]}  Bf5 {[%clk 0:00:15]} 62. Bd1 {[%clk 0:01:04]}  Ng6+ {[%clk 0:00:15]} 63. Kh5 {[%clk 0:01:04]}  Nf8 {[%clk 0:00:14]} 64. Kh4 {[%clk 0:01:04]}  Be6 {[%clk 0:00:14]} 65. Bh5 {[%clk 0:00:59]}  Bf5 {[%clk 0:00:15]} 66. Bd1 {[%clk 0:01:00]}  Be4 {[%clk 0:00:14]} 67. Bh5 {[%clk 0:00:58]}  Nh7 {[%clk 0:00:14]} 68. Bd1 {[%clk 0:00:58]}  Bf5 {[%clk 0:00:15]} 69. Be2 {[%clk 0:00:57]}  Nf6 {[%clk 0:00:16]} 70. Bd1 {[%clk 0:00:58]}  Ng8 {[%clk 0:00:18]} 71. Kh5 {[%clk 0:00:57]}  Nf6+ {[%clk 0:00:19]} 72. Kh4 {[%clk 0:00:58]}  Ne8 {[%clk 0:00:20]} 73. Kh5 {[%clk 0:00:51]}  Nd6 {[%clk 0:00:20]} 74. Kh4 {[%clk 0:00:52]}  Nc4 {[%clk 0:00:21]} 75. Kh5 {[%clk 0:00:48]}  Ne3 {[%clk 0:00:22]} 76. Be2 {[%clk 0:00:49]}  Ng2 {[%clk 0:00:21]} 77. Bd1 {[%clk 0:00:47]}  Ne3 {[%clk 0:00:22]} 78. Be2 {[%clk 0:00:48]}  Nd5 {[%clk 0:00:23]} 79. Bd1 {[%clk 0:00:48]}  Nc3 {[%clk 0:00:24]} 80. Bb3 {[%clk 0:00:41]}  Ne2 {[%clk 0:00:25]} 81. Bd1 {[%clk 0:00:34]}  Ng3+ {[%clk 0:00:25]} 82. Kh4 {[%clk 0:00:35]}  Bg6 {[%clk 0:00:24]} 83. Bg4 {[%clk 0:00:36]}  Ne4 {[%clk 0:00:24]} 84. Bd1 {[%clk 0:00:33]}  Nf2 {[%clk 0:00:23]} 85. Bh5 {[%clk 0:00:29]}  Bf5 {[%clk 0:00:23]} 86. Be2 {[%clk 0:00:30]}  Ne4 {[%clk 0:00:19]} 87. Bd3 {[%clk 0:00:29]}  Nf6 {[%clk 0:00:18]} 88. Bxf5 {[%clk 0:00:30]}  Kxf5 {[%clk 0:00:20]} 89. h7 {[%clk 0:00:32]}  Nxh7 {[%clk 0:00:21]} 1/2-1/2


[Site "Internet"]

[Event "Chessable Masters - Torneo preliminare"]
[White "Alonso Rosell, Alvar"]
[Black "Martinez Alcantara, Jose Eduardo"]
[WhiteFideId "2270544"]
[BlackFideId "3805662"]
[WhiteElo "2473"]
[BlackElo "2643"]
[Result "1-0"]
[Round "5"]
[TimeControl "600+2"]
[Date "2023.03.13"]
[WhiteClock "0:00:26"]
[BlackClock "0:05:01"]

1. d4 {[%clk 0:10:01]}  Nf6 {[%clk 0:09:59]} 2. c4 {[%clk 0:10:03]}  e6 {[%clk 0:10:00]} 3. Nf3 {[%clk 0:10:04]}  Bb4+ {[%clk 0:10:01]} 4. Nbd2 {[%clk 0:10:06]}  O-O {[%clk 0:10:01]} 5. a3 {[%clk 0:10:05]}  Be7 {[%clk 0:10:03]} 6. e4 {[%clk 0:10:06]}  d6 {[%clk 0:10:05]} 7. Be2 {[%clk 0:10:06]}  Nfd7 {[%clk 0:10:04]} 8. b4 {[%clk 0:09:03]}  e5 {[%clk 0:10:05]} 9. d5 {[%clk 0:09:01]}  a5 {[%clk 0:10:06]} 10. Bb2 {[%clk 0:09:02]}  axb4 {[%clk 0:10:08]} 11. axb4 {[%clk 0:09:04]}  Rxa1 {[%clk 0:10:10]} 12. Qxa1 {[%clk 0:08:59]}  c5 {[%clk 0:10:11]} 13. dxc6 {[%clk 0:08:40]}  bxc6 {[%clk 0:10:13]} 14. O-O {[%clk 0:08:35]}  Re8 {[%clk 0:09:52]} 15. Rd1 {[%clk 0:08:21]}  Qc7 {[%clk 0:09:52]} 16. c5 {[%clk 0:07:23]}  dxc5 {[%clk 0:09:44]} 17. Nxe5 {[%clk 0:07:21]}  Bf8 {[%clk 0:09:45]} 18. Nxf7 {[%clk 0:06:48]}  Kxf7 {[%clk 0:09:38]} 19. Bc4+ {[%clk 0:06:49]}  Kg6 {[%clk 0:09:37]} 20. Nf3 {[%clk 0:06:18]}  Qf4 {[%clk 0:08:40]} 21. Qa2 {[%clk 0:03:36]}  Rxe4 {[%clk 0:05:46]} 22. Bd3 {[%clk 0:03:24]}  Nf6 {[%clk 0:05:47]} 23. Ne5+ {[%clk 0:01:48]}  Kh6 {[%clk 0:05:47]} 24. Bxe4 {[%clk 0:01:34]}  Qxe4 {[%clk 0:05:48]} 25. Qf7 {[%clk 0:01:24]}  Kg5 {[%clk 0:05:21]} 26. Qxf8 {[%clk 0:01:11]}  Qc2 {[%clk 0:05:22]} 27. Qxg7+ {[%clk 0:00:48]}  Kf5 {[%clk 0:05:24]} 28. Re1 {[%clk 0:00:33]}  h5 {[%clk 0:05:00]} 29. Nf3 {[%clk 0:00:29]}  Nbd7 {[%clk 0:04:59]} 30. Nh4+ {[%clk 0:00:25]}  Kf4 {[%clk 0:05:01]} 31. g3# {[%clk 0:00:26]} 1-0


[Site "Internet"]

[Event "Chessable Masters - Torneo preliminare"]
[White "Nguyen, Ngoc Truong Son"]
[Black "Michalik, Peter"]
[WhiteFideId "12401110"]
[BlackFideId "14907526"]
[WhiteElo "2585"]
[BlackElo "2526"]
[Result "1/2-1/2"]
[Round "5"]
[TimeControl "600+2"]
[Date "2023.03.13"]
[WhiteClock "0:00:49"]
[BlackClock "0:03:12"]

1. d4 {[%clk 0:10:01]}  Nf6 {[%clk 0:10:00]} 2. c4 {[%clk 0:09:59]}  e6 {[%clk 0:10:01]} 3. Nc3 {[%clk 0:09:59]}  Bb4 {[%clk 0:10:02]} 4. e3 {[%clk 0:10:00]}  O-O {[%clk 0:10:01]} 5. Bd2 {[%clk 0:10:01]}  d5 {[%clk 0:10:02]} 6. Nf3 {[%clk 0:10:01]}  c5 {[%clk 0:09:59]} 7. a3 {[%clk 0:09:59]}  Bxc3 {[%clk 0:09:59]} 8. Bxc3 {[%clk 0:10:00]}  Ne4 {[%clk 0:09:45]} 9. Rc1 {[%clk 0:09:59]}  Nxc3 {[%clk 0:09:40]} 10. Rxc3 {[%clk 0:10:01]}  cxd4 {[%clk 0:09:36]} 11. Nxd4 {[%clk 0:09:35]}  dxc4 {[%clk 0:09:30]} 12. Bxc4 {[%clk 0:09:31]}  Bd7 {[%clk 0:09:23]} 13. O-O {[%clk 0:09:06]}  Nc6 {[%clk 0:09:23]} 14. Nf3 {[%clk 0:08:31]}  Qe7 {[%clk 0:09:17]} 15. Qc2 {[%clk 0:08:21]}  Rfd8 {[%clk 0:09:13]} 16. h3 {[%clk 0:07:48]}  Rac8 {[%clk 0:09:07]} 17. Rc1 {[%clk 0:07:38]}  Be8 {[%clk 0:09:04]} 18. Bd3 {[%clk 0:07:19]}  h6 {[%clk 0:09:03]} 19. Bh7+ {[%clk 0:07:09]}  Kh8 {[%clk 0:09:03]} 20. Be4 {[%clk 0:07:09]}  Qf6 {[%clk 0:07:44]} 21. Qb3 {[%clk 0:06:26]}  Rc7 {[%clk 0:07:04]} 22. Qc4 {[%clk 0:05:23]}  Rdc8 {[%clk 0:06:38]} 23. Qc5 {[%clk 0:05:15]}  Kg8 {[%clk 0:05:50]} 24. Qd6 {[%clk 0:04:17]}  Rd7 {[%clk 0:05:00]} 25. Qg3 {[%clk 0:04:03]}  Rdd8 {[%clk 0:04:52]} 26. Kh2 {[%clk 0:03:54]}  Bd7 {[%clk 0:04:44]} 27. b4 {[%clk 0:03:17]}  a6 {[%clk 0:04:29]} 28. Qd6 {[%clk 0:01:39]}  Be8 {[%clk 0:04:16]} 29. Qf4 {[%clk 0:01:22]}  Qe7 {[%clk 0:04:09]} 30. Ne5 {[%clk 0:01:16]}  Na7 {[%clk 0:04:00]} 31. Rxc8 {[%clk 0:00:56]}  Nxc8 {[%clk 0:03:37]} 32. Nc4 {[%clk 0:00:49]}  Bb5 {[%clk 0:03:12]} 1/2-1/2


[Site "Internet"]